bitfinex/quotes_SOLUSD_20220228
["timestamp","ask_amount","ask_price","bid_price","bid_amount"]
[1646057898363,113.41896272,90.839,90.726,4.406]
[1646057898563,13.34,90.84,90.725,2.64335709]
[1646057898762,1.57576447,90.839,90.725,2.64335709]
[1646057898964,113.27576447,90.839,90.725,2.64335709]
[1646057899164,1.55532803,90.838,90.725,2.64335709]
[1646057899765,13.34,90.84,90.725,2.64335709]
[1646057899966,13.34,90.84,90.725,7.04935709]
[1646057900667,58.73607479,90.848,90.726,2.74678921]
[1646057900867,58.73607479,90.848,90.73,13.34]
[1646057901066,58.73607479,90.848,90.731,8.28589501]
[1646057901265,58.73607479,90.848,90.731,11.03268422]
[1646057901470,1.63606105,90.847,90.731,2.74678921]
[1646057901667,1.63606105,90.847,90.732,2.74678921]
[1646057901967,58.73607479,90.848,90.725,2.6573992]
[1646057902169,1.77008273,90.847,90.726,6.0]
[1646057902365,1.77008273,90.847,90.725,2.6573992]
[1646057902568,58.73607479,90.848,90.725,2.6573992]
[1646057903087,58.73607479,90.848,90.726,13.15178921]
[1646057903289,58.73607479,90.848,90.726,8.74678921]
[1646057903489,58.73607479,90.848,90.73,13.34]
[1646057903690,58.73607479,90.848,90.731,9.06895425]
[1646057903890,58.73607479,90.848,90.731,11.81574346]
[1646057904089,58.73607479,90.848,90.732,2.74678921]
[1646057904289,58.73607479,90.848,90.733,6.0]
[1646057904489,58.73607479,90.848,90.732,2.74678921]
[1646057905096,1.81235696,90.847,90.732,2.74678921]
[1646057905290,58.73607479,90.848,90.732,2.74678921]
[1646057906793,3.453,90.908,90.74,13.34]
[1646057906992,1.59365284,90.907,90.742,2.62656301]
[1646057907296,66.96,90.904,90.743,6.0]
[1646057907491,66.96,90.899,90.743,8.74678921]
[1646057907692,13.34,90.9,90.743,8.74678921]
[1646057907890,1.74175804,90.898,90.743,8.74678921]
[1646057908092,1.74175804,90.898,90.744,23.0942]
[1646057908291,1.74175804,90.898,90.745,2.80576225]
[1646057908494,13.34,90.9,90.745,2.80576225]
[1646057908495,13.34,90.9,90.751,111.7]
[1646057908792,58.60042934,90.903,90.754,3.04902645]
[1646057908991,58.60042934,90.903,90.757,2.94799451]
[1646057909190,66.96,90.902,90.76,13.34]
[1646057909391,68.40403652,90.899,90.755,2.74678921]
[1646057909591,1.74259803,90.898,90.758,2.74678921]
[1646057910192,1.74259803,90.898,90.757,2.68958826]
[1646057910392,66.96,90.887,90.757,2.68958826]
[1646057910594,13.34,90.88,90.757,2.68958826]
[1646057910796,45.48215125,90.882,90.758,2.74678921]
[1646057910993,45.48215125,90.882,90.759,6.0]
[1646057911193,45.48215125,90.882,90.76,4.404]
[1646057911394,45.48215125,90.882,90.761,6.0]
[1646057911595,45.48215125,90.882,90.761,8.69158385]
[1646057911795,6.0,90.909,90.762,71.364]
[1646057911994,13.34,90.94,90.764,66.96]
[1646057912194,13.34,90.94,90.773,5.0]
[1646057912395,1.39123593,90.939,90.78,13.34]
[1646057912601,13.34,90.94,90.785,66.96]
[1646057912797,51.46607137,90.939,90.793,5.0]
[1646057912995,51.46607137,90.939,90.8,13.34]
[1646057913495,51.46607137,90.939,90.802,178.66]
[1646057913696,51.46607137,90.939,90.804,178.66]
[1646057913897,51.46607137,90.939,90.823,5.0]
[1646057914095,51.46607137,90.939,90.831,111.7]
[1646057914297,51.46607137,90.939,90.833,111.7]
[1646057914500,1.78619492,90.974,90.834,2.74693786]
[1646057914698,3.446,90.979,90.84,111.7]
[1646057914900,15.7769902,90.973,90.846,111.7]
[1646057915104,15.7769902,90.973,90.847,2.91977135]
[1646057915302,15.7769902,90.973,90.841,2.74678921]
[1646057915303,82.7369902,90.989,90.848,6.0]
[1646057915503,162.50412478,90.988,90.849,70.7499]
[1646057915708,1.350644,90.987,90.85,2.55106366]
[1646057915904,111.7,90.982,90.85,2.55106366]
[1646057916104,111.7,90.969,90.85,2.68290348]
[1646057916304,13.34,90.97,90.85,2.68290348]
[1646057916305,51.78350463,90.968,90.85,2.68290348]
[1646057916505,1.40067404,90.967,90.85,2.68290348]
[1646057916703,1.38880972,90.967,90.85,2.68290348]
[1646057916907,68.34880972,90.967,90.85,2.68290348]
[1646057917105,1.62863089,90.966,90.85,2.68290348]
[1646057917505,66.96,90.961,90.85,2.68290348]
[1646057917709,178.66,90.954,90.85,2.68290348]
[1646057917917,178.66,90.952,90.849,73.033838]
[1646057918208,44.91206882,90.938,90.85,2.73162186]
[1646057918605,111.7,90.937,90.782,4.4]
[1646057918805,44.91206882,90.938,90.789,13.24127724]
[1646057919006,44.91206882,90.938,90.789,15.78806645]
[1646057919204,44.91206882,90.938,90.8,13.34]
[1646057919405,68.70902409,90.937,90.802,111.7]
[1646057919606,113.56261986,90.936,90.804,111.7]
[1646057919805,111.7,90.937,90.805,2.86978821]
[1646057920005,111.7,90.937,90.811,111.7]
[1646057920310,111.7,90.937,90.812,2.69584429]
[1646057920507,111.7,90.937,90.815,2.88613238]
[1646057920707,111.7,90.937,90.818,2.82094654]
[1646057921108,44.91206882,90.938,90.818,2.82094654]
[1646057921109,111.7,90.933,90.818,2.82094654]
[1646057921309,13.34,90.93,90.818,2.82094654]
[1646057921509,13.34,90.96,90.818,2.82094654]
[1646057921709,24.00984022,90.969,90.822,3.04007961]
[1646057921910,1.69049437,90.998,90.829,111.7]
[1646057922108,13.34,91.01,90.841,111.7]
[1646057922308,15.71805762,90.997,90.843,111.7]
[1646057922510,180.02601345,90.996,90.845,111.7]
[1646057922707,178.66,90.994,90.846,2.96249014]
[1646057922910,178.66,90.979,90.844,2.74678921]
[1646057923108,178.66,90.977,90.831,51.74626358]
[1646057923311,1.85821504,90.976,90.832,8.59499306]
[1646057923510,178.66,90.975,90.832,8.59499306]
[1646057923709,111.7,90.969,90.833,111.7]
[1646057923912,111.7,90.961,90.834,6.0]
[1646057924110,13.34,90.95,90.834,6.0]
[1646057924411,45.9975083,90.96,90.833,6.0]
[1646057924412,111.7,90.955,90.833,6.0]
[1646057924710,45.9975083,90.96,90.835,2.74678921]
[1646057924912,13.34,90.99,90.839,111.7]
[1646057925114,23.64434573,91.012,90.851,111.7]
[1646057925314,0.14177346,91.011,90.852,4.30705]
[1646057925614,15.7059038,91.011,90.863,5.0]
[1646057925812,75.52515002,91.011,90.873,5.0]
[1646057926013,59.81924622,91.011,90.883,5.0]
[1646057926210,59.81924622,91.011,90.874,4.306]
[1646057926211,59.81924622,91.011,90.88,13.34]
[1646057926412,13.34,91.01,90.881,6.0]
[1646057926613,125.04,91.01,90.874,4.306]
[1646057926811,15.70113791,91.009,90.875,6.0]
[1646057927413,15.70113791,91.009,90.877,2.91790314]
[1646057928013,15.70113791,91.009,90.878,8.74678921]
[1646057928216,15.70113791,91.009,90.88,13.34]
[1646057928416,59.81924622,91.011,90.88,16.18775766]
[1646057928616,13.34,91.01,90.88,2.84775766]
[1646057928816,29.03849479,91.01,90.88,2.84775766]
[1646057929217,15.69849479,91.009,90.88,2.84775766]
[1646057929819,113.09973864,91.008,90.88,2.84775766]
[1646057930119,1.62206343,91.007,90.88,2.84775766]
[1646057930320,178.66,91.006,90.88,2.84775766]
[1646057930519,1.461688,91.005,90.88,2.84775766]
[1646057930821,58.69071589,90.989,90.88,2.84775766]
[1646057931819,113.42645344,90.988,90.88,2.84775766]
[1646057932021,113.42645344,90.988,90.82,13.34]
[1646057932022,111.7,90.982,90.843,2.36623312]
[1646057932219,178.66,90.969,90.801,71.6847]
[1646057932520,111.7,90.959,90.807,2.74678921]
[1646057932721,1.39537971,90.958,90.807,2.74678921]
[1646057933119,178.66,90.951,90.802,2.5224825]
[1646057933321,13.34,90.94,90.802,2.5224825]
[1646057933522,54.61773086,90.95,90.803,2.74678921]
[1646057933718,13.34,90.94,90.803,2.74678921]
[1646057934319,125.04,90.94,90.803,2.74678921]
[1646057934718,1.81859747,90.939,90.803,2.74678921]
[1646057934918,1.81859747,90.939,90.802,2.5224825]
[1646057935119,66.96,90.927,90.802,2.5224825]
[1646057935318,54.61773086,90.95,90.802,2.5224825]
[1646057935319,111.7,90.912,90.802,2.5224825]
[1646057935522,178.66,90.899,90.802,2.5224825]
[1646057935723,1.54680941,90.898,90.752,2.4607316]
[1646057936122,178.66,90.897,90.752,2.4607316]
[1646057936322,1.72805582,90.896,90.752,2.4607316]
[1646057936544,66.96,90.897,90.754,2.88009248]
[1646057936945,66.96,90.897,90.755,2.74678921]
[1646057937343,111.7,90.892,90.754,2.88009248]
[1646057937543,178.66,90.879,90.754,2.88009248]
[1646057937745,13.34,90.87,90.755,2.74678921]
[1646057938044,13.34,90.86,90.755,2.74678921]
[1646057938445,13.34,90.86,90.756,6.0]
[1646057938943,13.34,90.86,90.757,2.74678921]
[1646057939145,59.00456566,90.859,90.758,6.0]
[1646057939444,59.00456566,90.859,90.754,2.29857259]
[1646057939644,59.00456566,90.859,90.755,6.0]
[1646057939847,111.7,90.858,90.754,2.29857259]
[1646057940248,59.00456566,90.859,90.754,2.29857259]
[1646057940747,13.34,90.86,90.754,2.29857259]
[1646057940953,13.34,90.86,90.755,2.74678921]
[1646057941346,111.7,90.859,90.755,2.74678921]
[1646057941547,13.34,90.86,90.755,2.74678921]
[1646057941747,49.69205164,90.859,90.755,2.74678921]
[1646057941947,13.34,90.86,90.755,2.74678921]
[1646057942148,13.34,90.86,90.757,111.7]
[1646057942349,111.7,90.916,90.759,111.7]
[1646057942551,111.7,90.916,90.761,111.7]
[1646057942749,111.7,90.909,90.762,2.44691089]
[1646057942949,111.7,90.907,90.764,111.7]
[1646057943151,111.7,90.907,90.766,111.7]
[1646057943356,58.4126661,90.908,90.765,6.0]
[1646057943357,58.4126661,90.908,90.77,111.7]
[1646057943655,58.4126661,90.908,90.793,5.0]
[1646057943849,58.4126661,90.908,90.778,3.03800489]
[1646057943850,58.4126661,90.908,90.794,10.402]
[1646057944050,58.4126661,90.908,90.774,4.402]
[1646057944252,58.4126661,90.908,90.795,2.74678921]
[1646057944450,58.4126661,90.908,90.797,111.7]
[1646057944650,111.7,90.907,90.795,2.74678921]
[1646057944850,58.4126661,90.908,90.777,3.05793772]
[1646057945451,111.7,90.907,90.777,3.05793772]
[1646057945652,58.4126661,90.908,90.777,3.05793772]
[1646057945851,58.4126661,90.908,90.778,6.0]
[1646057946153,66.96,90.907,90.777,3.05793772]
[1646057946352,1.68754514,90.906,90.777,3.05793772]
[1646057946551,178.66,90.904,90.777,3.05793772]
[1646057946752,111.7,90.904,90.777,3.05793772]
[1646057946953,13.34,90.89,90.777,3.05793772]
[1646057947156,47.18583534,90.889,90.777,3.05793772]
[1646057948152,111.7,90.888,90.777,3.05793772]
[1646057948756,47.18583534,90.889,90.777,3.05793772]
[1646057949355,47.18583534,90.889,90.779,111.7]
[1646057949554,47.18583534,90.889,90.782,2.67236549]
[1646057949754,47.18583534,90.889,90.784,2.48172119]
[1646057949954,47.18583534,90.889,90.787,2.65456526]
[1646057950154,47.18583534,90.889,90.79,2.78987811]
[1646057950856,13.34,90.9,90.794,111.7]
[1646057951055,13.34,90.92,90.803,66.96]
[1646057951258,111.7,90.959,90.81,111.7]
[1646057951457,111.7,90.929,90.811,6.71701431]
[1646057951655,111.7,90.929,90.803,111.7]
[1646057951656,111.7,90.929,90.804,2.36110109]
[1646057951856,111.7,90.919,90.778,2.47485124]
[1646057952056,13.34,90.91,90.779,2.53588092]
[1646057952256,53.80688595,90.909,90.779,2.53588092]
[1646057952456,1.67487178,90.907,90.779,2.53588092]
[1646057953157,66.96,90.898,90.779,2.53588092]
[1646057953356,66.96,90.884,90.779,2.53588092]
[1646057953556,111.7,90.869,90.779,2.53588092]
[1646057953760,111.7,90.867,90.779,2.53588092]
[1646057953958,66.96,90.86,90.706,22.98424568]
[1646057954157,111.7,90.847,90.701,77.78816746]
[1646057954360,13.34,90.85,90.701,77.78816746]
[1646057954361,111.7,90.831,90.701,74.7325]
[1646057954558,66.96,90.82,90.688,11.51143668]
[1646057954759,111.7,90.813,90.688,11.51143668]
[1646057954959,13.34,90.8,90.688,11.51143668]
[1646057955161,62.41487641,90.799,90.688,11.51143668]
[1646057955359,1.77061723,90.797,90.688,11.51143668]
[1646057956059,1.77061723,90.797,90.683,69.6871]
[1646057956470,1.77061723,90.797,90.683,22.7317]
[1646057956661,1.77061723,90.797,90.646,4.408]
[1646057956870,1.77061723,90.797,90.635,4.408]
[1646057957068,1.77061723,90.797,90.629,2.74678921]
[1646057957364,1.70297342,90.789,90.652,6.0]
[1646057957563,1.85716105,90.795,90.654,2.53037422]
[1646057957765,1.85716105,90.795,90.653,111.7]
[1646057957766,60.55445465,90.799,90.657,2.60646582]
[1646057957963,60.55445465,90.799,90.663,5.0]
[1646057958163,60.55445465,90.799,90.664,4.31598]
[1646057958362,60.55445465,90.799,90.666,2.83655184]
[1646057958564,1.69041509,90.798,90.667,14.72384]
[1646057958767,1.69041509,90.798,90.667,39.18988209]
[1646057958963,1.69041509,90.798,90.668,55.78077933]
[1646057959165,1.69041509,90.798,90.67,2.43662722]
[1646057959364,1.69041509,90.798,90.671,6.0]
[1646057959565,60.55445465,90.799,90.672,111.7]
[1646057959865,60.55445465,90.799,90.675,2.59574418]
[1646057960066,60.55445465,90.799,90.677,111.7]
[1646057960266,13.34,90.8,90.678,2.47353455]
[1646057960465,3.501,90.824,90.691,111.7]
[1646057960668,3.501,90.824,90.692,2.25450079]
[1646057960866,3.501,90.824,90.693,116.107]
[1646057961067,3.501,90.824,90.695,111.7]
[1646057961272,3.501,90.824,90.696,2.9242246]
[1646057961474,3.501,90.824,90.7,125.04]
[1646057961675,3.501,90.824,90.704,111.7]
[1646057961869,1.86692747,90.88,90.713,5.0]
[1646057962069,1.7321604,90.89,90.723,5.0]
[1646057962269,1.6593601,90.89,90.733,5.0]
[1646057962469,44.63435079,90.919,90.743,5.0]
[1646057962669,1.5006341,90.918,90.753,5.0]
[1646057962869,1.5006341,90.918,90.773,5.0]
[1646057963069,1.5006341,90.918,90.775,111.7]
[1646057963268,44.63435079,90.919,90.774,71.6138]
[1646057963269,44.63435079,90.919,90.777,111.7]
[1646057963469,44.63435079,90.919,90.781,111.7]
[1646057963669,44.63435079,90.919,90.783,116.7]
[1646057963873,44.63435079,90.919,90.786,2.42008085]
[1646057964069,44.63435079,90.919,90.789,2.81386176]
[1646057964070,1.69242826,90.918,90.789,2.81386176]
[1646057964269,1.69242826,90.918,90.791,2.31428105]
[1646057964471,1.69242826,90.918,90.792,6.0]
[1646057964972,1.49816458,90.918,90.793,7.14878921]
[1646057965170,1.49816458,90.918,90.794,6.0]
[1646057965370,1.49816458,90.918,90.795,111.7]
[1646057965569,1.49816458,90.918,90.796,6.0]
[1646057965770,1.49816458,90.918,90.795,66.96]
[1646057965970,44.63435079,90.919,90.797,66.96]
[1646057966169,44.63435079,90.919,90.799,66.96]
[1646057966369,44.63435079,90.919,90.8,120.1202601]
[1646057966572,44.63435079,90.919,90.801,2.83774799]
[1646057966772,44.63435079,90.919,90.803,111.7]
[1646057966971,44.63435079,90.919,90.807,111.7]
[1646057967174,1.73846888,90.918,90.808,2.92267329]
[1646057967573,1.73846888,90.918,90.81,111.7]
[1646057967771,1.73846888,90.918,90.811,6.0]
[1646057967974,1.73846888,90.918,90.809,6.0]
[1646057968273,1.73846888,90.918,90.809,3.5]
[1646057968473,1.73846888,90.918,90.791,114.59867822]
[1646057968672,1.73846888,90.918,90.791,111.7]
[1646057968873,68.69846888,90.918,90.792,2.44503706]
[1646057969077,1.67674997,90.917,90.776,4.402]
[1646057969272,1.67674997,90.917,90.767,4.402]
[1646057969273,66.96,90.916,90.767,4.402]
[1646057969473,111.7,90.911,90.764,2.37085761]
[1646057969674,111.7,90.899,90.764,2.37085761]
[1646057969873,111.7,90.899,90.744,184.8058]
[1646057969874,111.7,90.889,90.765,3.03192984]
[1646057970290,1.53973121,90.888,90.774,159.8076]
[1646057970478,1.53973121,90.888,90.774,48.1076]
[1646057970677,1.53973121,90.888,90.791,111.7]
[1646057970875,1.65753717,90.897,90.792,2.51951025]
[1646057971075,13.34,90.91,90.796,66.96]
[1646057971375,13.34,90.92,90.809,111.7]
[1646057971583,13.34,90.94,90.815,111.7]
[1646057971777,13.34,90.94,90.82,2.51266521]
[1646057971977,56.76827672,90.939,90.821,6.0]
[1646057972383,56.76827672,90.939,90.822,4.401]
[1646057972577,56.76827672,90.939,90.823,6.0]
[1646057972776,56.76827672,90.939,90.822,2.74678921]
[1646057972979,56.76827672,90.939,90.816,2.81143179]
[1646057973177,56.76827672,90.939,90.817,6.0]
[1646057973778,56.76827672,90.939,90.816,2.81143179]
[1646057974381,56.76827672,90.939,90.817,6.0]
[1646057974981,56.76827672,90.939,90.816,2.81143179]
[1646057975582,56.76827672,90.939,90.817,2.74678921]
[1646057975881,56.76827672,90.939,90.818,6.0]
[1646057976284,56.76827672,90.939,90.819,2.74678921]
[1646057976983,81.86903631,90.939,90.818,6.0]
[1646057977183,1.42867063,90.938,90.816,2.81143179]
[1646057977698,25.10075959,90.937,90.816,2.81143179]
[1646057977898,1.8646912,90.936,90.816,2.81143179]
[1646057978099,113.5646912,90.936,90.816,2.81143179]
[1646057978301,1.691152,90.935,90.816,2.81143179]
[1646057978700,26.79191159,90.935,90.816,2.81143179]
[1646057978900,1.39133594,90.934,90.817,2.74678921]
[1646057979202,54.31236991,90.919,90.817,2.74678921]
[1646057980499,1.43412604,90.918,90.816,2.81143179]
[1646057982003,1.3900173,90.917,90.816,2.81143179]
[1646057982800,54.31236991,90.919,90.816,2.81143179]
[1646057983001,111.7,90.918,90.817,2.74678921]
[1646057983200,1.56360174,90.917,90.816,2.81143179]
[1646057983401,111.7,90.918,90.816,2.81143179]
[1646057983601,54.31236991,90.919,90.816,2.81143179]
[1646057985202,66.96,90.915,90.816,2.81143179]
[1646057985406,180.36778374,90.914,90.816,2.81143179]
[1646057985602,13.34,90.9,90.816,2.81143179]
[1646057985802,56.42725127,90.899,90.816,2.81143179]
[1646057986205,13.34,90.9,90.816,2.81143179]
[1646057986403,8.40395197,90.91,90.818,111.7]
[1646057986603,13.34,90.94,90.82,111.7]
[1646057986806,13.34,90.97,90.824,111.7]
[1646057987006,13.34,90.99,90.831,111.7]
[1646057987205,48.05218799,90.976,90.838,66.96]
[1646057987405,13.34,91.0,90.851,178.66]
[1646057987604,15.18765581,91.006,90.855,111.7]
[1646057987805,1.48354846,91.005,90.856,3.05245282]
[1646057988005,13.34,90.98,90.856,3.05245282]
[1646057988206,113.05105325,90.976,90.856,3.05245282]
[1646057988407,111.7,90.974,90.856,3.05245282]
[1646057988607,13.34,90.97,90.856,3.05245282]
[1646057988806,66.96,90.968,90.856,3.05245282]
[1646057989007,111.7,90.965,90.856,3.05245282]
[1646057989407,13.34,90.97,90.856,3.05245282]
[1646057990009,13.34,91.0,90.857,7.05359921]
[1646057990212,1.70858032,91.012,90.87,13.34]
[1646057990412,113.40858032,91.012,90.872,2.67463219]
[1646057990610,1.6157267,90.998,90.871,2.95179491]
[1646057990812,68.5757267,90.998,90.854,2.96041029]
[1646057991110,66.96,90.984,90.854,2.96041029]
[1646057991311,111.7,90.969,90.854,2.96041029]
[1646057991514,57.82203441,90.968,90.854,2.96041029]
[1646057991709,1.4265129,90.967,90.854,2.96041029]
[1646057991909,1.4265129,90.967,90.819,7.17888306]
[1646057991910,68.3865129,90.967,90.819,7.17888306]
[1646057992211,1.73992564,90.966,90.821,2.39179631]
[1646057992409,1.73992564,90.966,90.823,111.7]
[1646057992611,113.51916372,90.966,90.831,111.7]
[1646057992817,1.75636653,90.965,90.832,2.90285818]
[1646057993317,111.7,90.956,90.831,2.63638521]
[1646057993518,66.96,90.949,90.831,2.63638521]
[1646057993718,66.96,90.949,90.82,47.5953]
[1646057993719,111.7,90.934,90.821,2.31637085]
[1646057993919,224.48375198,90.934,90.821,2.31637085]
[1646057994120,1.85570612,90.933,90.821,2.31637085]
[1646057994520,111.7,90.929,90.821,2.31637085]
[1646057996124,13.34,90.93,90.821,2.31637085]
[1646057996322,66.96,90.926,90.821,2.31637085]
[1646057996524,1.65980446,90.922,90.821,2.31637085]
[1646057996921,111.7,90.919,90.821,2.31637085]
[1646057997122,111.7,90.917,90.821,2.31637085]
[1646057997524,1.79303183,90.916,90.821,2.31637085]
[1646057998622,111.7,90.913,90.821,2.31637085]
[1646057998822,111.7,90.913,90.78,13.34]
[1646057998823,111.7,90.905,90.773,73.2669]
[1646057999024,111.7,90.893,90.774,2.59388559]
[1646057999223,172.66734148,90.893,90.774,2.59388559]
[1646057999427,1.68531758,90.892,90.774,2.59388559]
[1646057999826,1.68531758,90.892,90.774,111.7]
[1646058000025,172.66734148,90.893,90.775,2.56683155]
[1646058000228,1.37573867,90.892,90.775,2.56683155]
[1646058000434,13.34,90.89,90.775,2.56683155]
[1646058000625,13.34,90.89,90.744,69.8322]
[1646058000626,111.7,90.885,90.751,2.31506935]
[1646058000828,13.34,90.89,90.752,6.0]
[1646058001027,1.63179232,90.889,90.762,11.50566917]
[1646058001226,1.63179232,90.889,90.754,2.40996394]
[1646058001428,1.63179232,90.889,90.745,2.80231692]
[1646058001728,113.33179232,90.889,90.745,2.80231692]
[1646058001926,13.34,90.89,90.747,111.7]
[1646058002127,13.34,90.89,90.75,13.34]
[1646058002332,1.62181384,90.889,90.752,2.77636549]
[1646058002730,1.62181384,90.889,90.73,13.34]
[1646058002929,66.96,90.882,90.735,2.31408502]
[1646058003131,66.96,90.869,90.736,48.4934]
[1646058003328,13.34,90.87,90.737,2.29016461]
[1646058003329,111.7,90.866,90.737,2.29016461]
[1646058003528,178.66,90.864,90.737,2.29016461]
[1646058003728,13.34,90.86,90.737,2.29016461]
[1646058003929,78.9295,90.892,90.737,2.29016461]
[1646058003930,48.30811532,90.858,90.737,2.29016461]
[1646058004129,111.7,90.857,90.74,13.34]
[1646058004329,113.35744503,90.857,90.74,13.34]
[1646058004529,111.7,90.857,90.74,13.34]
[1646058004930,66.96,90.856,90.737,2.29016461]
[1646058005128,48.30811532,90.858,90.737,2.29016461]
[1646058005129,111.7,90.853,90.737,2.29016461]
[1646058005329,1.65385648,90.852,90.737,2.29016461]
[1646058005729,13.34,90.84,90.737,2.29016461]
[1646058005930,178.66,90.837,90.737,2.29016461]
[1646058006130,111.7,90.837,90.737,2.29016461]
[1646058006330,113.08764289,90.835,90.719,11.51095328]
[1646058006534,111.7,90.819,90.706,5.75851654]
[1646058006931,111.7,90.817,90.683,2.74678921]
[1646058007133,178.66,90.811,90.673,2.74678921]
[1646058007332,13.34,90.8,90.673,2.74678921]
[1646058007536,58.21875268,90.799,90.673,2.74678921]
[1646058007933,1.49026252,90.834,90.674,30.70474167]
[1646058008133,13.34,90.82,90.675,2.53850265]
[1646058008336,1.55526028,90.819,90.675,5.28529186]
[1646058008533,1.55526028,90.819,90.675,2.74678921]
[1646058008733,113.25526028,90.819,90.676,2.74678921]
[1646058008934,49.02331134,90.818,90.677,6.0]
[1646058009133,49.02331134,90.818,90.679,2.34229999]
[1646058009334,49.02331134,90.818,90.68,4.407]
[1646058009533,49.02331134,90.818,90.682,2.27505756]
[1646058009732,49.02331134,90.818,90.683,10.407]
[1646058009933,13.34,90.82,90.69,13.34]
[1646058010135,13.34,90.84,90.693,2.73940532]
[1646058010332,22.8903,90.849,90.693,2.73940532]
[1646058010533,13.34,90.84,90.694,6.0]
[1646058010733,13.34,90.84,90.695,6.88486885]
[1646058010935,13.34,90.83,90.697,3.01266544]
[1646058011534,13.34,90.83,90.698,2.74678921]
[1646058012234,13.34,90.83,90.7,2.90943206]
[1646058012640,66.96,90.829,90.681,2.74678921]
[1646058012836,111.7,90.82,90.681,2.74678921]
[1646058013035,66.96,90.809,90.652,2.74678921]
[1646058013235,66.96,90.791,90.638,2.74678921]
[1646058013436,111.7,90.779,90.639,6.0]
[1646058013635,1.85858289,90.778,90.64,2.74678921]
[1646058013835,178.66,90.776,90.628,48.3585]
[1646058014034,1.73297506,90.775,90.629,2.89475784]
[1646058014635,1.73297506,90.775,90.631,3.02634632]
[1646058015035,1.73297506,90.775,90.633,2.80080788]
[1646058015239,59.93223955,90.777,90.633,2.80080788]
[1646058015436,59.93223955,90.777,90.634,72.06486974]
[1646058015636,1.56971917,90.775,90.635,2.51201175]
[1646058015839,1.56971917,90.775,90.635,5.25880096]
[1646058016044,1.56971917,90.775,90.629,2.74750322]
[1646058016237,59.93223955,90.777,90.637,3.07917768]
[1646058016639,178.66,90.774,90.638,50.87789352]
[1646058016841,178.66,90.769,90.639,2.46559609]
[1646058017042,1.56422336,90.768,90.639,33.20256827]
[1646058017243,1.56422336,90.768,90.641,111.7]
[1646058017441,13.34,90.77,90.643,3.06987501]
[1646058017641,111.7,90.767,90.643,3.06987501]
[1646058017845,66.96,90.758,90.643,3.06987501]
[1646058018043,1.52672339,90.764,90.643,3.06987501]
[1646058018044,111.7,90.741,90.644,2.74678921]
[1646058018245,66.96,90.742,90.643,3.06987501]
[1646058018246,13.34,90.74,90.643,3.06987501]
[1646058018644,13.34,90.74,90.644,2.74678921]
[1646058018845,13.34,90.74,90.644,5.68093546]
[1646058019268,1.55487813,90.738,90.644,5.68093546]
[1646058019474,1.55487813,90.738,90.629,30.73697218]
[1646058019475,1.55487813,90.738,90.629,2.28216541]
[1646058019672,113.25487813,90.738,90.629,2.28216541]
[1646058019868,66.96,90.732,90.629,2.28216541]
[1646058020072,66.96,90.729,90.629,2.28216541]
[1646058020472,1.80310326,90.728,90.629,2.28216541]
[1646058020669,66.96,90.729,90.629,2.28216541]
[1646058020871,111.7,90.72,90.629,2.28216541]
[1646058021071,111.7,90.702,90.626,4.406]
[1646058021270,111.7,90.698,90.626,4.406]
[1646058021471,13.34,90.7,90.626,4.406]
[1646058021673,45.87055653,90.691,90.626,4.406]
[1646058021868,45.87055653,90.691,90.57,50.75552648]
[1646058022071,45.37055653,90.691,90.594,30.73697218]
[1646058022269,13.34,90.69,90.595,2.96536166]
[1646058022771,125.04,90.69,90.597,2.8311294]
[1646058022968,13.34,90.69,90.582,2.69520046]
[1646058023171,22.5835,90.746,90.598,33.48376139]
[1646058023374,95.6645,90.759,90.599,10.41]
[1646058023569,95.6645,90.759,90.61,13.34]
[1646058023771,95.6645,90.759,90.611,10.41]
[1646058023970,1.63307774,90.789,90.612,116.01846]
[1646058024170,60.01405976,90.788,90.614,111.7]